[Event "AZE-ch Women 2019"]
[Site "Baku"]
[Date "2019.02.11"]
[Round "8.8"]
[White "Heydarova, Aytaj"]
[Black "Babayeva, Samira"]
[Result "1-0"]
[ECO "A04"]
[WhiteElo "1747"]
[BlackElo "1773"]
[Annotator "NA RC"]
[PlyCount "59"]
[EventDate "2019.02.04"]
[EventType "swiss"]
[EventCountry "AZE"]
[SourceTitle "playchess.com"]
[Source "ChessBase"]
[SourceQuality "1"]
[TimeControl "40/5400+30:1800+30"]

1. Nf3 {[%emt 0:00:00]} f5 {[%emt 0:17:46]} 2. g3 {[%emt 0:00:29]} d6 {[%emt 0:00:39]} 3. d4 {[%emt 0:00:11]} c6 {[%emt 0:00:04]} 4. Bg2 {[%emt 0:00:17]} Qc7 {[%emt 0:00:06]} 5. O-O {[%emt 0:01:47]} e5 {[%emt 0:00:08]} 6. c4 {[%emt 0:00:26]} Be7 {[%emt 0:00:27]} 7. b3 {[%emt 0:03:01]} Bf6 {[%emt 0:03:17]} 8. Bb2 {[%emt 0:02:33]} e4 {[%emt 0:02:59]} 9. Ne1 {[%emt 0:00:45]} d5 {[%emt 0:00:43]} 10. cxd5 {[%emt 0:01:01]} cxd5 {[%emt 0:00:05]} 11. Nc3 {[%emt 0:00:04]} Ne7 {[%emt 0:02:51]} 12. Rc1 {[%emt 0:00:58]} Nbc6 {[%emt 0:00:39]} 13. Nb5 {[%emt 0:02:28]} Qd7 {[%emt 0:00:11]} 14. Ba3 {[%emt 0:01:30]} O-O {[%emt 0:00:11]} 15. Nc2 {[%emt 0:02:41]} g5 {[%emt 0:06:38]} 16. Qd2 {[%emt 0:10:56]} Rf7 {[%emt 0:03:44]} 17. f4 {[%emt 0:07:32]} gxf4 {[%emt 0:02:34]} 18. Qxf4 {[%emt 0:01:11]} Rg7 {[%emt 0:00:40]} 19. e3 {[%emt 0:00:12]} a6 {[%emt 0:01:12]} 20. Nd6 {[%emt 0:02:10]} Bg5 {[%emt 0:02:20]} 21. Qf2 {[%emt 0:00:17]} b5 {[%emt 0:00:28]} 22. Bh3 {[%emt 0:01:00]} b4 {[%emt 0:04:38]} 23. Nxc8 {[%emt 0:00:39]} Rxc8 {[%emt 0:01:38]} 24. Nxb4 {[%emt 0:02:23]} Nxd4 {[%emt 0:04:43]} 25. Rxc8+ {[%emt 0:01:51]} Qxc8 {[%emt 0:01:32]} 26. exd4 {[%emt 0:00:47]} Qc3 {[%emt 0:00:42]} 27. Nc2 {[%emt 0:01:32]} Nc6 {[%emt 0:00:49]} 28. Qxf5 {[%emt 0:00:36]} h5 {[%emt 0:01:00]} 29. Qf8+ {[%emt 0:00:10]} Kh7 {[%emt 0:00:12]} 30. Bf5+ {[%emt 0:00:11]} 1-0

[Event "AZE-ch Women 2019"]
[Site "Baku"]
[Date "2019.02.11"]
[Round "8.9"]
[White "Gasimova, Samra"]
[Black "Hajiyeva, Altunay"]
[Result "1-0"]
[ECO "A40"]
[WhiteElo "1693"]
[BlackElo "1315"]
[Annotator "NA"]
[PlyCount "215"]
[EventDate "2019.02.04"]
[EventType "swiss"]
[EventCountry "AZE"]
[SourceTitle "playchess.com"]
[Source "ChessBase"]
[SourceQuality "1"]
[TimeControl "40/5400+30:1800+30"]

1. d4 {[%emt 0:00:00]} c6 {[%emt 0:01:45]} 2. c4 {[%emt 0:00:00]} Nf6 {[%emt 0:02:20]} 3. Nc3 {[%emt 0:00:01]} d5 {[%emt 0:00:52]} 4. e3 {[%emt 0:01:02]} Bf5 {[%emt 0:02:03]} 5. Qb3 {[%emt 0:03:47]} Qd7 {[%emt 0:06:43]} 6. cxd5 {[%emt 0:05:22]} cxd5 {[%emt 0:02:40]} 7. Nf3 {[%emt 0:01:19]} e6 {[%emt 0:06:19]} 8. Bb5 {[%emt 0:00:40]} Nc6 {[%emt 0:00:45]} 9. Ne5 {[%emt 0:00:38]} Qc7 {[%emt 0:02:17]} 10. Qa4 {[%emt 0:01:26]} Rc8 {[%emt 0:02:35]} 11. Qxa7 {[%emt 0:04:11]} Bd6 {[%emt 0:07:23]} 12. Bxc6+ {[%emt 0:02:29]} bxc6 {[%emt 0:02:11]} 13. Qxc7 {[%emt 0:00:39]} Rxc7 {[%emt 0:01:18]} 14. f4 {[%emt 0:06:24]} Ne4 {[%emt 0:06:07]} 15. Bd2 {[%emt 0:05:18]} Nxd2 {[%emt 0:06:01]} 16. Kxd2 {[%emt 0:00:09]} f6 {[%emt 0:00:14]} 17. Nf3 {[%emt 0:00:41]} Rb7 {[%emt 0:02:39]} 18. b3 {[%emt 0:01:06]} O-O {[%emt 0:02:40]} 19. Nh4 {[%emt 0:02:11]} Be4 {[%emt 0:06:42]} 20. Nxe4 {[%emt 0:03:53]} dxe4 {[%emt 0:00:03]} 21. g3 {[%emt 0:00:19]} Bb4+ {[%emt 0:11:14]} 22. Ke2 {[%emt 0:04:23]} Ba3 {[%emt 0:03:35]} 23. Ng2 {[%emt 0:02:48]} Ra8 {[%emt 0:03:33]} 24. Rhb1 {[%emt 0:04:59]} c5 {[%emt 0:09:40]} 25. dxc5 {[%emt 0:05:37]} Bxc5 {[%emt 0:00:12]} 26. Rc1 {[%emt 0:00:19]} Bb4 {[%emt 0:01:03]} 27. Rc4 {[%emt 0:03:20]} f5 {[%emt 0:00:10]} 28. Rc2 {[%emt 0:14:35]} Ra3 {[%emt 0:00:50]} 29. Rc4 {[%emt 0:06:37]} Be7 {[%emt 0:00:36]} 30. Ne1 {[%emt 0:01:39]} Rbxb3 {[%emt 0:02:31]} 31. axb3 {[%emt 0:01:02]} Rxa1 {[%emt 0:00:02]} 32. Nc2 {[%emt 0:04:22]} Rh1 {[%emt 0:03:14]} 33. h4 {[%emt 0:00:19]} Rh2+ {[%emt 0:01:09]} 34. Kf1 {[%emt 0:00:13]} Rh1+ {[%emt 0:00:22]} 35. Kg2 {[%emt 0:00:50]} Rb1 {[%emt 0:00:21]} 36. Nd4 {[%emt 0:02:22]} Kf7 {[%emt 0:03:13]} 37. Rc7 {[%emt 0:00:56]} Kf6 {[%emt 0:01:58]} 38. Rc6 {[%emt 0:00:46]} Kf7 {[%emt 0:00:58]} 39. Rxe6 {[%emt 0:04:58]} g6 {[%emt 0:00:07]} 40. Rb6 {[%emt 0:00:00]} Rb2+ {[%emt 0:00:00]} 41. Kf1 {[%emt 0:02:35]} Bc5 {[%emt 0:02:24]} 42. Rb7+ {[%emt 0:10:48]} Ke8 {[%emt 0:02:56]} 43. Rxh7 {[%emt 0:03:39]} Bxd4 {[%emt 0:00:20]} 44. exd4 {[%emt 0:00:05]} Rxb3 {[%emt 0:00:34]} 45. Kf2 {[%emt 0:00:44]} Rb2+ {[%emt 0:00:28]} 46. Kf1 {[%emt 0:00:46]} Rb3 {[%emt 0:01:52]} 47. Kg2 {[%emt 0:00:47]} Rb2+ {[%emt 0:00:52]} 48. Kf1 {[%emt 0:02:55]} Rb3 {[%emt 0:01:08]} 49. Kg2 {[%emt 0:00:19]} Rb2+ {[%emt 0:00:18]} 50. Kh3 {[%emt 0:01:03]} Rd2 {[%emt 0:06:34]} 51. Rg7 {[%emt 0:02:18]} e3 {[%emt 0:01:35]} 52. Rxg6 {[%emt 0:00:08]} Kd7 {[%emt 0:00:17]} 53. d5 {[%emt 0:00:19]} Rxd5 {[%emt 0:11:52]} 54. Kg2 {[%emt 0:00:23]} Rd3 {[%emt 0:02:04]} 55. Kf3 {[%emt 0:00:22]} Ke7 {[%emt 0:00:26]} 56. g4 {[%emt 0:01:48]} fxg4+ {[%emt 0:00:29]} 57. Rxg4 {[%emt 0:00:04]} Kf6 {[%emt 0:00:56]} 58. h5 {[%emt 0:01:17]} Kf5 {[%emt 0:02:37]} 59. Rg5+ {[%emt 0:00:10]} Kf6 {[%emt 0:00:26]} 60. Re5 {[%emt 0:01:23]} e2+ {[%emt 0:01:48]} 61. Kxe2 {[%emt 0:00:06]} Rh3 {[%emt 0:00:41]} 62. Rg5 {[%emt 0:01:08]} Kf7 {[%emt 0:00:54]} 63. Kf2 {[%emt 0:00:32]} Kf6 {[%emt 0:00:24]} 64. Kg2 {[%emt 0:01:38]} Rh4 {[%emt 0:00:20]} 65. Kf3 {[%emt 0:00:36]} Rh1 {[%emt 0:00:49]} 66. Rg6+ {[%emt 0:01:32]} Kf5 {[%emt 0:00:54]} 67. Rg5+ {[%emt 0:00:11]} Kf6 {[%emt 0:00:09]} 68. Kf2 {[%emt 0:00:48]} Rh4 {[%emt 0:00:28]} 69. Kg3 {[%emt 0:01:41]} Rh1 {[%emt 0:00:08]} 70. Ra5 {[%emt 0:00:46]} Rg1+ {[%emt 0:01:01]} 71. Kf3 {[%emt 0:00:23]} Rf1+ {[%emt 0:00:30]} 72. Ke3 {[%emt 0:00:33]} Re1+ {[%emt 0:00:30]} 73. Kf2 {[%emt 0:00:12]} Rh1 {[%emt 0:00:20]} 74. Kg2 {[%emt 0:00:53]} Rh4 {[%emt 0:00:15]} 75. Kg3 {[%emt 0:01:02]} Rh1 {[%emt 0:00:08]} 76. Kg2 {[%emt 0:06:59]} Rh4 {[%emt 0:00:07]} 77. Kf3 {[%emt 0:00:32]} Rh1 {[%emt 0:00:41]} 78. h6 {[%emt 0:00:27]} Rxh6 {[%emt 0:01:42]} 79. Ke4 {[%emt 0:00:07]} Rh1 {[%emt 0:00:24]} 80. Ra6+ {[%emt 0:00:06]} Ke7 {[%emt 0:00:22]} 81. Ke5 {[%emt 0:00:19]} Re1+ {[%emt 0:00:43]} 82. Kf5 {[%emt 0:00:12]} Rd1 {[%emt 0:00:37]} 83. Ra7+ {[%emt 0:00:18]} Kd8 {[%emt 0:00:27]} 84. Ke6 {[%emt 0:00:29]} Re1+ {[%emt 0:00:12]} 85. Kf6 {[%emt 0:00:12]} Rc1 {[%emt 0:00:44]} 86. f5 {[%emt 0:00:22]} Rc6+ {[%emt 0:00:20]} 87. Kg7 {[%emt 0:00:27]} Rc5 {[%emt 0:00:46]} 88. f6 {[%emt 0:00:15]} Rg5+ {[%emt 0:00:23]} 89. Kf8 {[%emt 0:00:17]} Rf5 {[%emt 0:00:37]} 90. f7 {[%emt 0:00:30]} Rg5 {[%emt 0:00:30]} 91. Ra1 {[%emt 0:01:21]} Rg2 {[%emt 0:00:30]} 92. Rd1+ {[%emt 0:00:41]} Kc7 {[%emt 0:00:03]} 93. Rh1 {[%emt 0:00:32]} Kd7 {[%emt 0:00:41]} 94. Rh7 {[%emt 0:00:29]} Kd8 {[%emt 0:00:47]} 95. Rg7 {[%emt 0:00:15]} Rf2 {[%emt 0:00:29]} 96. Kg8 {[%emt 0:00:12]} Rxf7 {[%emt 0:00:28]} 97. Rxf7 {[%emt 0:00:06]} Ke8 {[%emt 0:00:10]} 98. Kg7 {[%emt 0:00:15]} Kd8 {[%emt 0:00:15]} 99. Kf6 {[%emt 0:00:07]} Ke8 {[%emt 0:00:06]} 100. Ke6 {[%emt 0:00:08]} Kd8 {[%emt 0:00:09]} 101. Re7 {[%emt 0:00:09]} Kc8 {[%emt 0:00:09]} 102. Rd7 {[%emt 0:00:07]} Kb8 {[%emt 0:00:14]} 103. Kd6 {[%emt 0:00:13]} Kc8 {[%emt 0:00:08]} 104. Kc6 {[%emt 0:00:09]} Kb8 {[%emt 0:00:06]} 105. Rc7 {[%emt 0:00:05]} Ka8 {[%emt 0:00:05]} 106. Kb6 {[%emt 0:00:04]} Kb8 {[%emt 0:00:11]} 107. Rc1 {[%emt 0:00:05]} Ka8 {[%emt 0:00:08]} 108. Rc8# {[%emt 0:00:03]} 1-0